fUST/lending_fUST_20240707
["ID","MTS","AMOUNT","RATE_DAILY","PERIOD"]
[331380839,1720303850827,-613.05,0.00043835,120]
[331380840,1720303850837,-613.05,0.00043835,120]
[331380841,1720303850847,-500.0,0.00043835,120]
[331380842,1720303850857,-613.05,0.00043835,120]
[331380843,1720303850866,-613.26992056,0.00043835,120]
[331380844,1720303850876,-500.0,0.00043835,120]
[331380845,1720303850886,-500.0,0.00043835,120]
[331380846,1720303850896,-500.0,0.00043835,120]
[331380847,1720303850905,-500.0,0.00043835,120]
[331380848,1720303850915,-500.0,0.00043835,120]
[331380849,1720303850925,-500.0,0.00043835,20]
[331380850,1720303850936,-500.0,0.00043835,120]
[331380851,1720303850947,-164.73351775,0.00043835,120]
[331380852,1720303850958,-500.0,0.00043835,120]
[331380853,1720303850968,-500.0,0.00043835,120]
[331380854,1720303850978,-3772.81,0.00043835,120]
[331380855,1720303850988,-500.0,0.00043835,120]
[331380856,1720303850998,-500.53779722,0.00043835,120]
[331380857,1720303851008,-500.0,0.00043835,120]
[331380858,1720303851018,-500.0,0.00043835,120]
[331380859,1720303851028,-500.0,0.00043835,120]
[331380860,1720303851039,-500.0,0.00043835,120]
[331380861,1720303851049,-500.0,0.00043835,120]
[331380862,1720303851058,-500.0,0.00043835,120]
[331380863,1720303851068,-251.38974856,0.00043835,120]
[331380864,1720303851078,-500.0,0.00043835,120]
[331380865,1720303851088,-500.0,0.00043835,120]
[331380866,1720303851098,-500.0,0.00043835,120]
[331380867,1720303851110,-500.0,0.00043835,120]
[331380868,1720303851120,-1505.26,0.00043835,120]
[331380869,1720303851129,-1397.42,0.00043835,120]
[331380870,1720303851142,-151.0,0.00043835,14]
[331380871,1720303851152,-160.652876,0.00043835,14]
[331380872,1720303851165,-500.0,0.00043835,120]
[331380873,1720303851177,-526.87418182,0.00043835,120]
[331380874,1720303851187,-4596.23,0.00043835,120]
[331380875,1720303851198,-500.0,0.00043835,120]
[331380876,1720303851208,-500.0,0.00043835,20]
[331380877,1720303851218,-500.0,0.00043835,120]
[331380878,1720303851229,-500.0,0.00043835,120]
[331380879,1720303851241,-151.0,0.00043835,14]
[331380880,1720303851251,-500.0,0.00043835,120]
[331380881,1720303851261,-151.0,0.00043835,14]
[331380882,1720303851273,-500.0,0.00043835,120]
[331380883,1720303851284,-500.0,0.00043835,120]
[331380884,1720303851295,-1411.24,0.00043835,120]
[331380885,1720303851306,-500.0,0.00043835,120]
[331380886,1720303851316,-525.00418764,0.00043835,120]
[331380887,1720303851326,-500.0,0.00043835,120]
[331380888,1720303851336,-500.47101615,0.00043835,120]
[331380889,1720303851346,-1440.61,0.00043835,120]
[331380890,1720303851365,-564.97,0.00043835,120]
[331380891,1720303851375,-500.0,0.00043835,120]
[331380892,1720303851385,-500.0,0.00043835,120]
[331380893,1720303851395,-20019.48,0.00043835,120]
[331380894,1720303851405,-997.77,0.00043835,120]
[331380895,1720303851415,-20019.48,0.00043835,120]
[331380896,1720303851426,-20019.48,0.00043835,120]
[331380897,1720303851436,-20019.48,0.00043835,120]
[331380898,1720303851446,-20019.48,0.00043835,120]
[331380899,1720303851456,-20019.48,0.00043835,120]
[331380900,1720303851467,-20019.48,0.00043835,120]
[331380901,1720303851477,-20019.48,0.00043835,120]
[331380902,1720303851487,-20019.48,0.00043835,120]
[331380903,1720303851497,-20019.48,0.00043835,120]
[331380904,1720303851507,-20019.48,0.00043835,120]
[331380905,1720303851517,-20019.48,0.00043835,120]
[331380906,1720303851527,-20019.48,0.00043835,120]
[331380907,1720303851537,-20019.48,0.00043835,120]
[331380908,1720303851546,-500.0,0.00043835,120]
[331380909,1720303851557,-20019.48,0.00043835,120]
[331380910,1720303851568,-20019.48,0.00043835,120]
[331380911,1720303851579,-500.0,0.00043835,120]
[331380912,1720303851591,-20019.48,0.00043835,120]
[331380913,1720303851604,-20019.48,0.00043835,120]
[331380914,1720303851613,-20019.48,0.00043835,120]
[331380915,1720303851623,-20019.48,0.00043835,120]
[331380916,1720303851633,-20019.48,0.00043835,120]
[331380917,1720303851643,-20019.48,0.00043835,120]
[331380918,1720303851653,-351.06501497,0.00043835,120]
[331380919,1720303853455,-1777.17615516,0.00043835,120]
[331380920,1720303853467,-634.52946729,0.00043835,120]
[331380921,1720303853479,-1281.53383628,0.00043835,120]
[331380922,1720303854216,-182.63268152,0.00016255,2]
[331380923,1720303854229,-954.59695617,0.00043835,120]
[331380924,1720303854242,-507.0,0.00043835,120]
[331380925,1720303854255,-10109.87563437,0.00043835,120]
[331380926,1720303854625,-3424.86999761,0.00043835,120]
[331380927,1720303855067,-3563.52,0.00035616,3]
[331380928,1720303855077,-978.83293815,0.00043835,120]
[331380929,1720303855088,-20019.60962728,0.00043835,120]
[331380930,1720303855098,-2256.34,0.00043835,120]
[331380931,1720303855108,-151.0,0.00043835,14]
[331380932,1720303855118,-404.14729114,0.00043835,120]
[331380933,1720303855128,-151.0,0.00043835,14]
[331380934,1720303855139,-151.0,0.00043835,14]
[331380935,1720303855148,-500.0,0.00043835,120]
[331380936,1720303855163,-151.0,0.00043835,14]
[331380937,1720303855176,-151.0,0.00043835,14]
[331380938,1720303855186,-500.0,0.00043835,120]
[331380939,1720303855196,-1508.23,0.00043835,120]
[331380940,1720303855207,-500.0,0.00043835,120]
[331380941,1720303855216,-552.62,0.00043835,120]
[331380942,1720303855227,-500.0,0.00043835,120]
[331380943,1720303855236,-501.14267237,0.00043835,120]
[331380944,1720303855245,-500.0,0.00043835,120]
[331380945,1720303855256,-500.0,0.00043835,120]
[331380946,1720303855265,-500.0,0.00043835,120]
[331380947,1720303855275,-500.0,0.00043835,120]
[331380948,1720303855284,-500.0,0.00043835,120]
[331380949,1720303855293,-500.0,0.00043835,120]
[331380950,1720303855303,-500.0,0.00043835,120]
[331380951,1720303855312,-479.99485744,0.00043835,120]
[331380952,1720303855322,-500.0,0.00043835,120]
[331380953,1720303855331,-500.0,0.00043835,120]
[331380954,1720303855341,-2325.18,0.00043835,120]
[331380955,1720303855351,-500.71678057,0.00043835,120]
[331380956,1720303855362,-151.0,0.00043835,14]
[331380957,1720303855372,-500.0,0.00043835,120]
[331380958,1720303855381,-500.0,0.00043835,120]
[331380959,1720303855391,-500.0,0.00043835,120]
[331380960,1720303855400,-512.13046913,0.00043835,120]
[331380961,1720303855410,-151.0,0.00043835,14]
[331380962,1720303855420,-151.0,0.00043835,14]
[331380963,1720303855429,-500.0,0.00043835,120]
[331380964,1720303855439,-151.0,0.00043835,14]
[331380965,1720303855448,-500.0,0.00043835,120]
[331380966,1720303855458,-500.0,0.00043835,120]
[331380967,1720303855467,-500.0,0.00043835,120]
[331380968,1720303855477,-500.0,0.00043835,120]
[331380969,1720303855487,-537.47,0.00043835,120]
[331380970,1720303855496,-500.0,0.00043835,120]
[331380971,1720303855507,-500.0,0.00043835,120]
[331380972,1720303855516,-1199.95,0.00043835,120]
[331380973,1720303855526,-500.0,0.00043835,120]
[331380974,1720303855535,-500.0,0.00043835,120]
[331380975,1720303855544,-172.51706124,0.00043835,120]
[331380976,1720303855554,-2178.81,0.00043835,120]
[331380977,1720303855564,-500.0,0.00043835,120]
[331380978,1720303855573,-500.0,0.00043835,120]
[331380979,1720303855583,-603.9,0.00043835,120]
[331380980,1720303855594,-1023.05,0.00043835,120]
[331380981,1720303855604,-532.03554524,0.00043835,120]
[331380982,1720303855614,-500.0,0.00043835,120]
[331380983,1720303855624,-2690.12,0.00043835,120]
[331380984,1720303855633,-500.22822418,0.00043835,3]
[331380985,1720303855643,-2531.48,0.00043835,120]
[331380986,1720303855653,-1146.96,0.00043835,120]
[331380987,1720303855663,-643.785727,0.00043835,14]
[331380988,1720303855673,-10500.26,0.00043835,120]
[331380989,1720303855682,-643.785727,0.00043835,14]
[331380990,1720303855691,-555.69683009,0.00043835,120]
[331380991,1720303855701,-643.785727,0.00043835,14]
[331380992,1720303855711,-2333.31,0.00043835,120]
[331380993,1720303855720,-500.0,0.00043835,120]
[331380994,1720303855730,-643.785727,0.00043835,14]
[331380995,1720303855740,-2000.0,0.00043835,60]
[331380996,1720303855750,-643.785727,0.00043835,14]
[331380997,1720303855760,-643.785727,0.00043835,14]
[331380998,1720303855770,-2635.59,0.00043835,120]
[331380999,1720303855779,-3986.01,0.00043835,120]
[331381000,1720303855789,-500.0,0.00043835,120]
[331381001,1720303855798,-500.0,0.00043835,120]
[331381002,1720303855808,-1536.33,0.00043835,7]
[331381003,1720303855817,-500.0,0.00043835,120]
[331381004,1720303855827,-500.0,0.00043835,120]
[331381005,1720303855836,-500.0,0.00043835,120]
[331381006,1720303855846,-500.0,0.00043835,120]
[331381007,1720303855857,-500.0,0.00043835,120]
[331381008,1720303855867,-500.0,0.00043835,120]
[331381009,1720303855876,-500.0,0.00043835,120]
[331381010,1720303855886,-500.0,0.00043835,120]
[331381011,1720303855896,-500.0,0.00043835,120]
[331381012,1720303855906,-500.0,0.00043835,120]
[331381013,1720303855916,-500.0,0.00043835,120]
[331381014,1720303855926,-2268.97,0.00043835,120]
[331381015,1720303855936,-6234.09,0.00043835,120]
[331381016,1720303855946,-500.0,0.00043835,30]
[331381017,1720303855958,-500.0,0.00043835,120]
[331381018,1720303855968,-500.0,0.00043835,120]
[331381019,1720303855980,-1586.33,0.00043835,120]
[331381020,1720303855990,-500.0,0.00043835,120]
[331381021,1720303855999,-500.0,0.00043835,120]
[331381022,1720303856009,-572.760836,0.00043835,14]
[331381023,1720303856019,-572.760836,0.00043835,14]
[331381024,1720303856029,-572.760836,0.00043835,14]
[331381025,1720303856039,-563.41,0.00043835,120]
[331381026,1720303856048,-1182.34,0.00043835,120]
[331381027,1720303856058,-500.0,0.00043835,120]
[331381028,1720303856067,-784.55,0.00043835,21]
[331381029,1720303856077,-500.0,0.00043835,120]
[331381030,1720303856086,-952.23,0.00043835,120]
[331381031,1720303856096,-572.760836,0.00043835,14]
[331381032,1720303856106,-572.760836,0.00043835,14]
[331381033,1720303856116,-572.760836,0.00043835,14]
[331381034,1720303856125,-500.0,0.00043835,120]
[331381035,1720303856134,-1195.71,0.00043835,120]
[331381036,1720303856143,-500.0,0.00043835,120]
[331381037,1720303856154,-312.157241,0.00043835,14]
[331381038,1720303856167,-312.157241,0.00043835,14]
[331381039,1720303856177,-620.07697146,0.00043835,120]
[331381040,1720303856188,-312.157241,0.00043835,14]
[331381041,1720303856199,-500.0,0.00043835,120]
[331381042,1720303856208,-500.0,0.00043835,120]
[331381043,1720303856218,-20106.23,0.00043835,120]
[331381044,1720303856228,-497.84591713,0.00043835,120]
[331381045,1720303856240,-500.0,0.00043835,120]
[331381046,1720303856250,-500.0,0.00043835,120]
[331381047,1720303856369,-500.0,0.00043835,120]
[331381048,1720303856383,-1341.6,0.00043835,120]
[331381049,1720303856393,-500.0,0.00043835,120]
[331381050,1720303856403,-1287.23,0.00043835,120]
[331381051,1720303856413,-500.0,0.00043835,120]
[331381052,1720303856423,-508.49626885,0.00043835,120]
[331381053,1720303856432,-268.98186504,0.00043835,120]
[331381054,1720303856442,-312.157241,0.00043835,14]
[331381055,1720303856452,-500.0,0.00043835,120]
[331381056,1720303856461,-312.157241,0.00043835,14]
[331381057,1720303856471,-312.157241,0.00043835,14]
[331381058,1720303856482,-500.0,0.00043835,120]
[331381059,1720303856493,-7312.91,0.00043835,120]
[331381060,1720303856503,-151.0,0.00043835,14]
[331381061,1720303856514,-500.0,0.00043835,120]
[331381062,1720303856524,-500.0,0.00043835,120]
[331381063,1720303856535,-9091.81,0.00043835,120]
[331381064,1720303856546,-500.0,0.00043835,120]
[331381065,1720303856556,-500.0,0.00043835,120]
[331381066,1720303856566,-500.0,0.00043835,120]
[331381067,1720303856576,-500.0,0.00043835,120]
[331381068,1720303856587,-500.0,0.00043835,120]
[331381069,1720303856597,-177.195108,0.00043835,120]
[331381070,1720303856608,-861.27,0.00043835,120]
[331381071,1720303856618,-200.0,0.00043835,7]
[331381072,1720303856627,-500.0,0.00043835,120]
[331381073,1720303856639,-500.0,0.00043835,120]
[331381074,1720303856649,-500.0,0.00043835,120]
[331381075,1720303856659,-983.4,0.00043835,120]
[331381076,1720303856668,-500.0,0.00043835,120]
[331381077,1720303856679,-500.0,0.00043835,120]
[331381078,1720303856691,-500.0,0.00043835,120]
[331381079,1720303856701,-517.43,0.00043835,120]
[331381080,1720303856711,-700.97,0.00043835,120]
[331381081,1720303856721,-500.0,0.00043835,120]
[331381082,1720303856732,-500.0,0.00043835,120]
[331381083,1720303856741,-654.47,0.00043835,120]
[331381084,1720303856751,-2534.81,0.00043835,120]
[331381085,1720303856761,-500.0,0.00043835,120]
[331381086,1720303856772,-573.64,0.00043835,120]
[331381087,1720303856781,-500.0,0.00043835,120]
[331381088,1720303856792,-256.60832063,0.00043835,120]
[331381089,1720303856802,-500.0,0.00043835,120]
[331381090,1720303856811,-500.0,0.00043835,120]
[331381091,1720303856821,-512.09116255,0.00043835,120]
[331381092,1720303856832,-500.0,0.00043835,120]
[331381093,1720303856842,-500.0,0.00043835,120]
[331381094,1720303856852,-525.67,0.00043835,120]
[331381095,1720303856863,-500.0,0.00043835,120]
[331381096,1720303856874,-9347.53,0.00043835,120]
[331381097,1720303856883,-500.0,0.00043835,120]
[331381098,1720303856892,-3811.59,0.00043835,120]
[331381099,1720303856902,-175.36650337,0.00043835,120]
[331381100,1720303856911,-500.0,0.00043835,120]
[331381101,1720303856920,-500.0,0.00043835,120]
[331381102,1720303856930,-17198.89,0.00043835,120]
[331381103,1720303856939,-307.489368,0.00043835,14]
[331381104,1720303856949,-307.489368,0.00043835,14]
[331381105,1720303856959,-307.489368,0.00043835,14]
[331381106,1720303856970,-500.0,0.00043835,120]
[331381107,1720303856979,-500.0,0.00043835,120]
[331381108,1720303856989,-500.0,0.00043835,120]
[331381109,1720303856998,-500.0,0.00043835,120]
[331381110,1720303857008,-500.0,0.00043835,120]
[331381111,1720303857017,-500.0,0.00043835,120]
[331381112,1720303857027,-500.0,0.00043835,120]
[331381113,1720303857036,-500.0,0.00043835,120]
[331381114,1720303857046,-778.72,0.00043835,120]
[331381115,1720303857056,-500.0,0.00043835,120]
[331381116,1720303857065,-1179.69,0.00043835,30]
[331381117,1720303857075,-4092.86,0.00043835,120]
[331381118,1720303857084,-500.0,0.00043835,120]
[331381119,1720303857094,-500.0,0.00043835,120]
[331381120,1720303857105,-500.0,0.00043835,120]
[331381121,1720303857115,-562.36,0.00043835,120]
[331381122,1720303857124,-500.0,0.00043835,120]
[331381123,1720303857133,-568.69,0.00043835,120]
[331381124,1720303857143,-500.0,0.00043835,120]
[331381125,1720303857152,-500.0,0.00043835,120]
[331381126,1720303857163,-500.0,0.00043835,120]
[331381127,1720303857175,-500.0,0.00043835,120]
[331381128,1720303857185,-500.0,0.00043835,120]
[331381129,1720303857194,-151.0,0.00043835,14]
[331381130,1720303857204,-307.489368,0.00043835,14]
[331381131,1720303857213,-151.0,0.00043835,14]
[331381132,1720303857223,-307.489368,0.00043835,14]
[331381133,1720303857232,-151.0,0.00043835,14]
[331381134,1720303857244,-307.489368,0.00043835,14]
[331381135,1720303857253,-151.0,0.00043835,14]
[331381136,1720303857262,-151.0,0.00043835,14]
[331381137,1720303857271,-151.0,0.00043835,14]
[331381138,1720303857281,-517.06722231,0.00043835,120]
[331381139,1720303857290,-151.0,0.00043835,14]
[331381140,1720303857299,-2040.97,0.00043835,120]
[331381141,1720303857310,-151.0,0.00043835,14]
[331381142,1720303857319,-151.0,0.00043835,14]
[331381143,1720303857329,-310.0,0.00043835,30]
[331381144,1720303857339,-151.0,0.00043835,14]
[331381145,1720303857348,-151.0,0.00043835,14]
[331381146,1720303857359,-446.822796,0.00043835,30]
[331381147,1720303857368,-771.44,0.00043835,120]
[331381148,1720303857377,-1491.29,0.00043835,120]
[331381149,1720303857387,-500.0,0.00043835,120]
[331381150,1720303857396,-500.0,0.00043835,120]
[331381151,1720303857405,-5819.07,0.00043835,120]
[331381152,1720303857414,-2751.74,0.00043835,120]
[331381153,1720303857424,-723.8,0.00043835,120]
[331381154,1720303857433,-163.01812952,0.00043835,120]
[331381155,1720303857442,-500.0,0.00043835,120]
[331381156,1720303857451,-151.0,0.00043835,14]
[331381157,1720303857460,-1011.95,0.00043835,120]
[331381158,1720303857470,-151.0,0.00043835,14]
[331381159,1720303857479,-151.0,0.00043835,14]
[331381160,1720303857490,-151.0,0.00043835,14]
[331381161,1720303857499,-151.0,0.00043835,14]
[331381162,1720303857509,-959.28,0.00043835,120]
[331381163,1720303857519,-151.0,0.00043835,14]
[331381164,1720303857529,-151.0,0.00043835,14]
[331381165,1720303857538,-1230.62,0.00043835,120]
[331381166,1720303857548,-151.0,0.00043835,14]
[331381167,1720303857557,-4444.56,0.00043835,120]
[331381168,1720303857567,-500.0,0.00043835,120]
[331381169,1720303857577,-500.0,0.00043835,120]
[331381170,1720303857587,-500.0,0.00043835,120]
[331381171,1720303857597,-500.0,0.00043835,120]
[331381172,1720303857609,-500.0,0.00043835,120]
[331381173,1720303857619,-500.0,0.00043835,120]
[331381174,1720303857631,-1909.58,0.00043835,120]
[331381175,1720303857640,-500.0,0.00043835,120]
[331381176,1720303857649,-725.24,0.00043835,120]
[331381177,1720303857659,-16492.98,0.00043835,120]
[331381178,1720303857669,-500.0,0.00043835,120]
[331381179,1720303857680,-2824.23,0.00043835,120]
[331381180,1720303857690,-500.0,0.00043835,120]
[331381181,1720303857700,-1231.35,0.00043835,120]
[331381182,1720303857709,-500.0,0.00043835,120]
[331381183,1720303857719,-151.0,0.00043835,14]
[331381184,1720303857729,-500.0,0.00043835,120]
[331381185,1720303857740,-151.0,0.00043835,14]
[331381186,1720303857749,-500.0,0.00043835,120]
[331381187,1720303857759,-151.0,0.00043835,14]
[331381188,1720303857768,-151.0,0.00043835,14]
[331381189,1720303857778,-151.0,0.00043835,14]
[331381190,1720303857787,-500.0,0.00043835,120]
[331381191,1720303857796,-500.0,0.00043835,120]
[331381192,1720303857806,-151.0,0.00043835,14]
[331381193,1720303857816,-151.0,0.00043835,14]
[331381194,1720303857826,-500.0,0.00043835,120]
[331381195,1720303857835,-151.0,0.00043835,14]
[331381196,1720303857846,-151.0,0.00043835,14]
[331381197,1720303857857,-500.0,0.00043835,120]
[331381198,1720303857866,-151.0,0.00043835,14]
[331381199,1720303857875,-16879.26,0.00043835,120]
[331381200,1720303857884,-344.10605279,0.00043835,120]
[331381201,1720303857893,-500.0,0.00043835,120]
[331381202,1720303857903,-500.0,0.00043835,120]
[331381203,1720303857912,-500.0,0.00043835,120]
[331381204,1720303857921,-660.08,0.00043835,120]
[331381205,1720303857931,-500.0,0.00043835,120]
[331381206,1720303857940,-500.0,0.00043835,120]
[331381207,1720303857950,-151.0,0.00043835,14]
[331381208,1720303857959,-500.0,0.00043835,120]
[331381209,1720303857969,-213.621364,0.00043835,14]
[331381210,1720303857978,-151.0,0.00043835,14]
[331381211,1720303857988,-151.0,0.00043835,14]
[331381212,1720303857997,-226.847544,0.00043835,14]
[331381213,1720303858006,-151.0,0.00043835,14]
[331381214,1720303858017,-500.0,0.00043835,120]
[331381215,1720303858026,-11116.91,0.00043835,120]
[331381216,1720303858035,-500.0,0.00043835,120]
[331381217,1720303858045,-5090.98,0.00043835,120]
[331381218,1720303858055,-500.0,0.00043835,120]
[331381219,1720303858064,-500.0,0.00043835,120]
[331381220,1720303858074,-500.0,0.00043835,120]
[331381221,1720303858083,-500.0,0.00043835,120]
[331381222,1720303858092,-500.0,0.00043835,120]
[331381223,1720303858102,-8852.99,0.00043835,120]
[331381224,1720303858113,-1123.52,0.00043835,120]
[331381225,1720303858122,-19300.22,0.00043835,120]
[331381226,1720303858132,-1112.26,0.00043835,120]
[331381227,1720303858141,-500.0,0.00043835,120]
[331381228,1720303858151,-500.0,0.00043835,120]
[331381229,1720303858165,-500.0,0.00043835,120]
[331381230,1720303858274,-500.0,0.00043835,120]
[331381231,1720303858284,-500.0,0.00043835,120]
[331381232,1720303858293,-500.0,0.00043835,120]
[331381233,1720303858303,-500.0,0.00043835,120]
[331381234,1720303858313,-573.9766567,0.00043835,120]
[331381235,1720303858322,-500.0,0.00043835,120]
[331381236,1720303858332,-500.0,0.00043835,120]
[331381237,1720303858341,-344.54034565,0.00043835,120]
[331381238,1720303858350,-500.0,0.00043835,120]
[331381239,1720303858361,-62031.57,0.00043835,120]
[331381240,1720303858371,-500.0,0.00043835,120]
[331381241,1720303858380,-3045.9,0.00043835,120]
[331381242,1720303858390,-500.0,0.00043835,120]
[331381243,1720303858399,-151.0,0.00043835,14]
[331381244,1720303858408,-500.0,0.00043835,120]
[331381245,1720303858418,-151.0,0.00043835,14]
[331381246,1720303858428,-500.0,0.00043835,120]
[331381247,1720303858437,-151.0,0.00043835,14]
[331381248,1720303858446,-151.0,0.00043835,14]
[331381249,1720303858455,-2454.54,0.00043835,120]
[331381250,1720303858465,-151.0,0.00043835,14]
[331381251,1720303858474,-151.0,0.00043835,14]
[331381252,1720303858484,-151.0,0.00043835,14]
[331381253,1720303858493,-862.15,0.00043835,120]
[331381254,1720303858502,-1795.39,0.00043835,120]
[331381255,1720303858512,-505.58530969,0.00043835,120]
[331381256,1720303858523,-1403.31,0.00043835,120]
[331381257,1720303858532,-500.0,0.00043835,120]
[331381258,1720303858542,-500.0,0.00043835,120]
[331381259,1720303858551,-895.35,0.00043835,120]
[331381260,1720303858561,-863.06,0.00043835,120]
[331381261,1720303858571,-548.95,0.00043835,120]
[331381262,1720303858580,-500.0,0.00043835,120]
[331381263,1720303858591,-1036.42,0.00043835,120]
[331381264,1720303858602,-500.0,0.00043835,120]
[331381265,1720303858613,-151.0,0.00043835,14]
[331381266,1720303858623,-151.0,0.00043835,14]
[331381267,1720303858632,-1023.9,0.00043835,120]
[331381268,1720303858641,-151.0,0.00043835,14]
[331381269,1720303858650,-500.0,0.00043835,120]
[331381270,1720303858660,-151.0,0.00043835,14]
[331381271,1720303858669,-400.0,0.00043836,60]
[331381272,1720303858679,-173.049076,0.00043838,2]
[331381273,1720303858690,-155.0,0.0004392,47]
[331381274,1720303858699,-10000.0,0.00044,44]
[331381275,1720303858709,-683.0,0.00044061,30]
[331381276,1720303858719,-252.0,0.000441,20]
[331381277,1720303858728,-2890.965325,0.00044101,30]
[331381278,1720303858737,-3438.642611,0.00044101,30]
[331381279,1720303858747,-759.127064,0.00044101,30]
[331381280,1720303858756,-898.18434,0.00044101,30]
[331381281,1720303858765,-155.977316,0.00044101,30]
[331381282,1720303858775,-160.0,0.00044108,30]
[331381283,1720303858785,-14053.33705397,0.00044109,61]
[331381284,1720303858794,-15991.96767907,0.00044109,61]
[331381285,1720303858804,-500.0,0.00044109,120]
[331381286,1720303858813,-500.0,0.00044109,120]
[331381287,1720303858822,-500.0,0.00044109,120]
[331381288,1720303858832,-151.0,0.00044109,14]
[331381289,1720303858841,-151.0,0.00044109,14]
[331381290,1720303858851,-151.0,0.00044109,14]
[331381291,1720303858862,-500.0,0.00044109,120]
[331381292,1720303858871,-2276.66,0.00044109,120]
[331381293,1720303858881,-500.0,0.00044109,120]
[331381294,1720303858892,-500.0,0.00044109,2]
[331381295,1720303858902,-1709.61,0.00044109,120]
[331381296,1720303858912,-500.0,0.00044109,120]
[331381297,1720303858922,-500.0,0.00044109,120]
[331381298,1720303858932,-642.75,0.00044109,120]
[331381299,1720303858941,-500.0,0.00044109,120]
[331381300,1720303858951,-500.0,0.00044109,120]
[331381301,1720303858961,-500.0,0.00044109,120]
[331381302,1720303858971,-1211.75,0.00044109,120]
[331381303,1720303858982,-530.01,0.00044109,120]
[331381304,1720303858992,-500.0,0.00044109,120]
[331381305,1720303859001,-742.9,0.00044109,120]
[331381306,1720303859010,-500.0,0.00044109,120]
[331381307,1720303859019,-508.48225823,0.00044109,120]
[331381308,1720303859029,-500.0,0.00044109,120]
[331381309,1720303859039,-151.0,0.00044109,14]
[331381310,1720303859048,-500.0,0.00044109,120]
[331381311,1720303859059,-500.0,0.00044109,120]
[331381312,1720303859068,-677.33,0.00044109,120]
[331381313,1720303859080,-151.0,0.00044109,14]
[331381314,1720303859098,-151.0,0.00044109,14]
[331381315,1720303859117,-151.0,0.00044109,14]
[331381316,1720303859133,-151.0,0.00044109,14]
[331381317,1720303859150,-151.0,0.00044109,14]
[331381318,1720303859170,-500.0,0.00044109,120]
[331381319,1720303859188,-500.0,0.00044109,120]
[331381320,1720303859205,-519.9803455,0.00044109,120]
[331381321,1720303859221,-535.52,0.00044109,120]
[331381322,1720303859236,-500.0,0.00044109,120]
[331381323,1720303859252,-1036.08,0.00044109,120]
[331381324,1720303859267,-151.0,0.00044109,14]
[331381325,1720303859283,-151.0,0.00044109,14]
[331381326,1720303859301,-151.0,0.00044109,14]
[331381327,1720303859316,-500.0,0.00044109,120]
[331381328,1720303859327,-500.0,0.00044109,120]
[331381329,1720303859342,-572.03588377,0.00044109,120]
[331381330,1720303859359,-502.53548147,0.00044109,7]
[331381331,1720303859372,-500.0,0.00044109,120]
[331381332,1720303859387,-979.27,0.00044109,120]
[331381333,1720303859399,-500.0,0.00044109,120]
[331381334,1720303859411,-500.0,0.00044109,120]
[331381335,1720303859425,-500.0,0.00044109,120]
[331381336,1720303859438,-2197.44,0.00044109,120]
[331381337,1720303859452,-500.0,0.00044109,120]
[331381338,1720303859466,-500.0,0.00044109,120]